[Event "69th RUS-ch Women Higher League 2019"]
[Site "Yaroslavl"]
[Date "2019.06.28"]
[Round "2.18"]
[White "Chkhan, Viktoria"]
[Black "Komiagina, Maria"]
[Result "0-1"]
[ECO "D37"]
[WhiteElo "2141"]
[BlackElo "2254"]
[Annotator "NA"]
[PlyCount "200"]
[EventDate "2019.06.27"]
[EventType "swiss"]
[EventCountry "RUS"]
[SourceTitle "playchess.com"]
[Source "ChessBase"]
[SourceQuality "1"]
[TimeControl "40/5400+30:1800+30"]

1. d4 {[%emt 0:00:00]} Nf6 2. c4 {[%emt 0:00:00]} e6 {[%emt 0:00:00]} 3. Nf3 {[%emt 0:00:00]} d5 {[%emt 0:00:02]} 4. Nc3 {[%emt 0:00:00]} a6 {[%emt 0:00:18]} 5. e3 {[%emt 0:03:59]} Be7 {[%emt 0:00:26]} 6. Bd3 {[%emt 0:01:08]} O-O {[%emt 0:00:35]} 7. O-O {[%emt 0:02:46]} dxc4 {[%emt 0:01:55]} 8. Bxc4 {[%emt 0:00:05]} b5 {[%emt 0:00:03]} 9. Bd3 {[%emt 0:02:11]} Bb7 {[%emt 0:00:09]} 10. Qe2 {[%emt 0:00:37]} Nbd7 {[%emt 0:09:52]} 11. Rd1 {[%emt 0:02:30]} Qc8 {[%emt 0:07:02]} 12. Bd2 {[%emt 0:19:56]} c5 {[%emt 0:00:13]} 13. dxc5 {[%emt 0:14:49]} Nxc5 {[%emt 0:00:43]} 14. Bc2 {[%emt 0:01:25]} Qc6 {[%emt 0:02:15]} 15. a3 {[%emt 0:09:16]} Nce4 {[%emt 0:04:31]} 16. Bxe4 {[%emt 0:01:58]} Nxe4 {[%emt 0:00:06]} 17. Nxe4 {[%emt 0:00:58]} Qxe4 {[%emt 0:00:09]} 18. Bc3 {[%emt 0:00:42]} Rfd8 {[%emt 0:05:48]} 19. h3 {[%emt 0:05:53]} h6 {[%emt 0:00:20]} 20. Ne1 {[%emt 0:07:20]} Rac8 {[%emt 0:06:05]} 21. Nf3 {[%emt 0:08:08]} Qg6 {[%emt 0:02:23]} 22. Rxd8+ {[%emt 0:03:31]} Rxd8 {[%emt 0:02:15]} 23. Rd1 {[%emt 0:01:18]} Bd5 {[%emt 0:00:41]} 24. Ne1 {[%emt 0:02:07]} Rc8 {[%emt 0:00:42]} 25. Rd4 {[%emt 0:06:58]} h5 {[%emt 0:03:57]} 26. Rd1 {[%emt 0:01:33]} Rc4 {[%emt 0:05:38]} 27. Rd4 {[%emt 0:01:41]} Bxa3 {[%emt 0:12:39]} 28. Rxc4 {[%emt 0:01:14]} Bxc4 {[%emt 0:00:07]} 29. Qd2 {[%emt 0:01:20]} Be7 {[%emt 0:00:44]} 30. Kh2 {[%emt 0:01:03]} Bd5 {[%emt 0:00:28]} 31. Bb4 {[%emt 0:00:29]} Bf6 {[%emt 0:01:11]} 32. Bc3 {[%emt 0:00:06]} Bxc3 {[%emt 0:01:20]} 33. Qxc3 {[%emt 0:00:05]} Qf5 {[%emt 0:00:32]} 34. f3 {[%emt 0:00:57]} h4 {[%emt 0:01:51]} 35. Nd3 {[%emt 0:00:54]} Qg5 {[%emt 0:01:33]} 36. e4 {[%emt 0:00:17]} Bc4 37. Ne5 {[%emt 0:00:30]} Qf6 {[%emt 0:06:42]} 38. Kg1 Kh7 {[%emt 0:02:52]} 39. Qd4 {[%emt 0:00:51]} Qf4 {[%emt 0:00:41]} 40. b4 {[%emt 0:00:00]} f6 {[%emt 0:00:00]} 41. Ng4 {[%emt 0:02:16]} f5 {[%emt 0:08:45]} 42. Nf2 {[%emt 0:06:02]} fxe4 {[%emt 0:00:39]} 43. fxe4 {[%emt 0:02:14]} Qg3 {[%emt 0:01:53]} 44. Qd1 {[%emt 0:02:25]} Qe5 {[%emt 0:00:55]} 45. Qd8 {[%emt 0:02:24]} Qa1+ {[%emt 0:00:28]} 46. Kh2 {[%emt 0:00:05]} Qf6 {[%emt 0:00:07]} 47. Qd2 {[%emt 0:00:51]} e5 {[%emt 0:02:27]} 48. Kg1 {[%emt 0:01:44]} Qf4 {[%emt 0:01:04]} 49. Qd1 {[%emt 0:03:59]} Bf7 {[%emt 0:01:03]} 50. Qe1 {[%emt 0:06:42]} Bg6 {[%emt 0:00:37]} 51. Kh1 {[%emt 0:03:40]} Qg3 {[%emt 0:01:15]} 52. Kg1 {[%emt 0:00:48]} Bh5 {[%emt 0:00:15]} 53. Kf1 {[%emt 0:01:10]} Qh2 {[%emt 0:01:15]} 54. Qe3 {[%emt 0:00:06]} Bf7 {[%emt 0:00:31]} 55. Qf3 {[%emt 0:01:19]} Bc4+ {[%emt 0:04:25]} 56. Ke1 {[%emt 0:00:03]} Qg1+ {[%emt 0:00:12]} 57. Kd2 {[%emt 0:00:04]} Kg8 {[%emt 0:00:21]} 58. Qf5 {[%emt 0:02:20]} Qxg2 {[%emt 0:00:53]} 59. Qc8+ {[%emt 0:00:03]} Kh7 {[%emt 0:00:21]} 60. Qf5+ {[%emt 0:00:10]} Qg6 {[%emt 0:01:15]} 61. Qxe5 {[%emt 0:00:38]} Qf6 {[%emt 0:01:45]} 62. Ng4 {[%emt 0:02:30]} Qxe5 {[%emt 0:03:46]} 63. Nxe5 {[%emt 0:00:05]} g5 {[%emt 0:00:32]} 64. Ng4 {[%emt 0:00:59]} Kg6 {[%emt 0:00:44]} 65. Ke3 {[%emt 0:00:18]} Bf1 {[%emt 0:01:10]} 66. Nf2 {[%emt 0:00:06]} Kf6 {[%emt 0:00:22]} 67. Kf3 {[%emt 0:01:05]} Kg6 {[%emt 0:02:04]} 68. Ke3 {[%emt 0:00:10]} Kf7 {[%emt 0:02:00]} 69. Kf3 {[%emt 0:00:09]} Kf6 {[%emt 0:00:37]} 70. Ke3 {[%emt 0:01:01]} Ke5 {[%emt 0:00:28]} 71. Ng4+ {[%emt 0:00:08]} Ke6 {[%emt 0:01:07]} 72. Nf2 {[%emt 0:00:05]} Bg2 {[%emt 0:00:15]} 73. Kd4 {[%emt 0:00:51]} Kd6 {[%emt 0:05:00]} 74. Ke3 {[%emt 0:00:17]} g4 {[%emt 0:02:46]} 75. Nxg4 {[%emt 0:00:05]} Bxh3 {[%emt 0:00:06]} 76. Nh2 {[%emt 0:00:23]} Bd7 {[%emt 0:01:50]} 77. Kd4 {[%emt 0:00:15]} Kc6 {[%emt 0:01:32]} 78. Nf3 {[%emt 0:01:16]} h3 {[%emt 0:00:18]} 79. Ne5+ {[%emt 0:01:35]} Kd6 {[%emt 0:00:11]} 80. Nf3 {[%emt 0:00:06]} Bg4 {[%emt 0:00:27]} 81. Nh2 {[%emt 0:00:11]} Bh5 {[%emt 0:00:12]} 82. Nf1 {[%emt 0:00:14]} Bf3 {[%emt 0:01:57]} 83. Nh2 {[%emt 0:00:40]} Bg2 {[%emt 0:01:40]} 84. Ng4 {[%emt 0:00:06]} Kc6 {[%emt 0:00:25]} 85. Nh2 {[%emt 0:00:47]} Kb6 {[%emt 0:00:23]} 86. e5 {[%emt 0:00:21]} Kc6 {[%emt 0:02:41]} 87. Ng4 {[%emt 0:00:11]} Kd7 {[%emt 0:00:58]} 88. Nh2 {[%emt 0:01:53]} Ke6 {[%emt 0:00:09]} 89. Ng4 {[%emt 0:00:32]} Kf5 {[%emt 0:01:15]} 90. Nh2 {[%emt 0:00:16]} Kf4 {[%emt 0:01:21]} 91. e6 {[%emt 0:00:04]} Kg3 {[%emt 0:01:13]} 92. e7 {[%emt 0:00:17]} Bc6 {[%emt 0:00:07]} 93. Kc5 {[%emt 0:01:21]} Be8 {[%emt 0:00:13]} 94. Nf1+ {[%emt 0:00:01]} Kg2 {[%emt 0:00:38]} 95. Ne3+ {[%emt 0:00:12]} Kg1 {[%emt 0:01:12]} 96. Ng4 {[%emt 0:00:14]} h2 {[%emt 0:00:24]} 97. Nxh2 {[%emt 0:00:03]} Kxh2 {[%emt 0:00:05]} 98. Kb6 {[%emt 0:00:16]} Kg3 {[%emt 0:00:21]} 99. Kxa6 {[%emt 0:00:04]} Kf4 {[%emt 0:00:09]} 100. Kb6 {[%emt 0:00:04]} Ke5 {[%emt 0:00:26]} 0-1

[Event "69th RUS-ch Women Higher League 2019"]
[Site "Yaroslavl"]
[Date "2019.06.28"]
[Round "2.19"]
[White "Chernyak, Viktoria"]
[Black "Shaydullina, Sandugach"]
[Result "1-0"]
[ECO "A96"]
[WhiteElo "2253"]
[BlackElo "2128"]
[Annotator "NA"]
[PlyCount "121"]
[EventDate "2019.06.27"]
[EventType "swiss"]
[EventCountry "RUS"]
[SourceTitle "playchess.com"]
[Source "ChessBase"]
[SourceQuality "1"]
[TimeControl "40/5400+30:1800+30"]

1. Nf3 {[%emt 0:00:00]} f5 {[%emt 0:00:00]} 2. g3 {[%emt 0:00:00]} d6 {[%emt 0:00:42]} 3. d4 {[%emt 0:00:28]} e6 {[%emt 0:00:26]} 4. Bg2 {[%emt 0:01:03]} Nf6 {[%emt 0:00:07]} 5. c4 {[%emt 0:00:35]} Be7 {[%emt 0:00:06]} 6. O-O {[%emt 0:00:21]} O-O {[%emt 0:00:05]} 7. Nc3 {[%emt 0:00:12]} Ne4 {[%emt 0:00:06]} 8. Qc2 {[%emt 0:03:31]} Nxc3 {[%emt 0:00:09]} 9. Qxc3 {[%emt 0:04:40]} Bf6 {[%emt 0:00:10]} 10. Rd1 {[%emt 0:13:05]} Qe8 {[%emt 0:01:53]} 11. Bg5 {[%emt 0:03:23]} e5 {[%emt 0:04:51]} 12. dxe5 {[%emt 0:02:35]} dxe5 {[%emt 0:00:04]} 13. Bxf6 {[%emt 0:01:22]} gxf6 {[%emt 0:00:05]} 14. b4 {[%emt 0:16:42]} Nc6 {[%emt 0:01:01]} 15. b5 {[%emt 0:03:21]} Ne7 {[%emt 0:00:19]} 16. Rd2 {[%emt 0:00:20]} a6 {[%emt 0:01:37]} 17. Qb4 {[%emt 0:08:05]} axb5 {[%emt 0:02:57]} 18. cxb5 {[%emt 0:00:12]} Bd7 {[%emt 0:00:11]} 19. Qc4+ {[%emt 0:06:58]} Rf7 {[%emt 0:00:06]} 20. Qxc7 {[%emt 0:05:44]} Bxb5 {[%emt 0:00:14]} 21. Qxb7 {[%emt 0:03:02]} Rb8 {[%emt 0:04:15]} 22. Qa7 {[%emt 0:02:33]} e4 {[%emt 0:05:56]} 23. Nd4 {[%emt 0:07:09]} e3 {[%emt 0:00:15]} 24. fxe3 {[%emt 0:00:51]} Nc6 {[%emt 0:00:17]} 25. Qa3 {[%emt 0:01:00]} Nxd4 {[%emt 0:05:01]} 26. Rxd4 {[%emt 0:00:24]} Re7 {[%emt 0:00:08]} 27. Kf2 {[%emt 0:00:30]} Rc8 {[%emt 0:01:45]} 28. Rad1 {[%emt 0:00:55]} Kg7 {[%emt 0:00:09]} 29. Bf3 {[%emt 0:01:07]} Rec7 {[%emt 0:00:19]} 30. Qd6 {[%emt 0:04:40]} Ba4 {[%emt 0:04:43]} 31. R1d2 {[%emt 0:00:34]} Bc2 {[%emt 0:02:40]} 32. Qf4 {[%emt 0:01:18]} Re7 {[%emt 0:01:06]} 33. Rd6 {[%emt 0:01:14]} Qf7 {[%emt 0:01:04]} 34. a4 {[%emt 0:01:51]} Rc4 {[%emt 0:03:36]} 35. R6d4 {[%emt 0:00:47]} Rc3 {[%emt 0:01:16]} 36. a5 {[%emt 0:04:44]} Qe6 {[%emt 0:01:02]} 37. Rd6 {[%emt 0:01:07]} Qf7 {[%emt 0:04:34]} 38. a6 {[%emt 0:00:38]} Rc4 {[%emt 0:02:09]} 39. R2d4 {[%emt 0:00:35]} Rc3 {[%emt 0:00:44]} 40. Rd2 {[%emt 0:00:00]} Rc4 {[%emt 0:00:00]} 41. R6d4 {[%emt 0:08:20]} Rc3 {[%emt 0:01:03]} 42. Rb4 {[%emt 0:01:02]} Rexe3 {[%emt 0:09:28]} 43. Rb7 {[%emt 0:02:05]} Re7 {[%emt 0:00:43]} 44. Qb4 {[%emt 0:00:44]} Rce3 {[%emt 0:16:35]} 45. Rxc2 {[%emt 0:01:23]} Kg6 {[%emt 0:01:52]} 46. Rxe7 {[%emt 0:04:56]} Rxe7 {[%emt 0:00:06]} 47. Bb7 {[%emt 0:01:05]} Rd7 {[%emt 0:04:58]} 48. Qc4 {[%emt 0:01:52]} Qf8 {[%emt 0:00:39]} 49. Rc3 {[%emt 0:03:27]} Qd8 {[%emt 0:01:27]} 50. Qc5 {[%emt 0:03:30]} Re7 {[%emt 0:03:04]} 51. Rd3 {[%emt 0:00:52]} Qe8 {[%emt 0:05:11]} 52. Re3 {[%emt 0:00:32]} Rxe3 {[%emt 0:01:42]} 53. Qxe3 {[%emt 0:00:05]} Qb5 {[%emt 0:00:52]} 54. a7 {[%emt 0:01:17]} Qxb7 {[%emt 0:01:26]} 55. Qe8+ {[%emt 0:00:05]} Kg7 {[%emt 0:02:07]} 56. a8=Q {[%emt 0:00:05]} Qb6+ {[%emt 0:00:33]} 57. Qe3 {[%emt 0:00:08]} Qd6 {[%emt 0:00:37]} 58. Qaa7+ {[%emt 0:00:41]} Kg6 {[%emt 0:00:32]} 59. Qe8+ {[%emt 0:00:20]} Kh6 {[%emt 0:00:19]} 60. Qae3+ {[%emt 0:00:24]} f4 {[%emt 0:01:35]} 61. Qxf4+ {[%emt 0:00:22]} 1-0

[Event "69th RUS-ch Women Higher League 2019"]
[Site "Yaroslavl"]
[Date "2019.06.28"]
[Round "2.20"]
[White "Bulatova, Kamaliya"]
[Black "Garifullina, Leya"]
[Result "1/2-1/2"]
[ECO "E53"]
[WhiteElo "2102"]
[BlackElo "2246"]
[Annotator "NA"]
[PlyCount "80"]
[EventDate "2019.06.27"]
[EventType "swiss"]
[EventCountry "RUS"]
[SourceTitle "playchess.com"]
[Source "ChessBase"]
[SourceQuality "1"]
[TimeControl "40/5400+30:1800+30"]

1. d4 {[%emt 0:00:00]} Nf6 {[%emt 0:00:00]} 2. c4 {[%emt 0:00:00]} e6 {[%emt 0:00:05]} 3. Nc3 {[%emt 0:00:00]} Bb4 {[%emt 0:00:08]} 4. e3 {[%emt 0:00:00]} O-O {[%emt 0:00:06]} 5. Bd3 {[%emt 0:00:00]} d5 {[%emt 0:00:10]} 6. Nf3 {[%emt 0:00:00]} c5 {[%emt 0:00:05]} 7. O-O {[%emt 0:00:18]} cxd4 {[%emt 0:00:07]} 8. exd4 {[%emt 0:00:04]} dxc4 {[%emt 0:00:05]} 9. Bxc4 {[%emt 0:00:04]} b6 {[%emt 0:00:08]} 10. Bg5 {[%emt 0:00:05]} Bb7 {[%emt 0:00:19]} 11. Qe2 {[%emt 0:00:38]} Nbd7 {[%emt 0:00:28]} 12. Rac1 {[%emt 0:02:40]} h6 {[%emt 0:01:55]} 13. Bh4 {[%emt 0:04:25]} Be7 {[%emt 0:02:26]} 14. Rfd1 {[%emt 0:04:21]} Re8 {[%emt 0:07:55]} 15. Ne5 {[%emt 0:09:14]} Nd5 {[%emt 0:08:35]} 16. Bg3 {[%emt 0:18:14]} Nxc3 {[%emt 0:28:24]} 17. Rxc3 {[%emt 0:02:57]} Bb4 {[%emt 0:01:45]} 18. Rb3 {[%emt 0:03:01]} Nxe5 {[%emt 0:06:12]} 19. dxe5 {[%emt 0:01:56]} Qe7 {[%emt 0:00:35]} 20. Rbd3 {[%emt 0:01:39]} Qc5 {[%emt 0:03:25]} 21. Rd7 {[%emt 0:06:43]} Qc6 {[%emt 0:01:07]} 22. f3 {[%emt 0:00:23]} Qc8 {[%emt 0:05:54]} 23. Kh1 {[%emt 0:05:00]} Bc6 {[%emt 0:02:59]} 24. R7d4 {[%emt 0:01:58]} Bc5 {[%emt 0:01:40]} 25. Rg4 {[%emt 0:05:04]} Rd8 {[%emt 0:03:11]} 26. Bd3 {[%emt 0:00:56]} Rd7 {[%emt 0:03:27]} 27. Bh4 {[%emt 0:03:50]} Kf8 {[%emt 0:04:55]} 28. Rc1 {[%emt 0:09:24]} a5 {[%emt 0:02:45]} 29. a3 {[%emt 0:02:45]} a4 {[%emt 0:00:29]} 30. Qd2 {[%emt 0:03:43]} Qa6 {[%emt 0:04:20]} 31. Rxg7 {[%emt 0:01:30]} Qxd3 {[%emt 0:01:46]} 32. Qxh6 {[%emt 0:00:05]} Qd1+ {[%emt 0:01:03]} 33. Be1 {[%emt 0:00:04]} Qxc1 {[%emt 0:01:01]} 34. Qh8+ {[%emt 0:05:48]} Ke7 {[%emt 0:00:22]} 35. Qh4+ {[%emt 0:00:05]} Ke8 {[%emt 0:00:52]} 36. Rg8+ {[%emt 0:00:23]} Bf8 {[%emt 0:00:04]} 37. Rxf8+ {[%emt 0:00:05]} Kxf8 {[%emt 0:00:04]} 38. Qh8+ {[%emt 0:00:04]} Ke7 {[%emt 0:00:08]} 39. Qf6+ {[%emt 0:00:05]} Kf8 {[%emt 0:00:15]} 40. Qh8+ {[%emt 0:00:00]} Ke7 {[%emt 0:00:00]} 1/2-1/2

[Event "69th RUS-ch Women Higher League 2019"]
[Site "Yaroslavl"]
[Date "2019.06.28"]
[Round "2.21"]
[White "Lysenko, Margarita"]
[Black "Kabanova, Ekaterina"]
[Result "1/2-1/2"]
[ECO "D31"]
[WhiteElo "2224"]
[BlackElo "2099"]
[Annotator "NA"]
[PlyCount "112"]
[EventDate "2019.06.27"]
[EventType "swiss"]
[EventCountry "RUS"]
[SourceTitle "playchess.com"]
[Source "ChessBase"]
[SourceQuality "1"]
[TimeControl "40/5400+30:1800+30"]

1. d4 {[%emt 0:00:00]} d5 {[%emt 0:00:00]} 2. c4 {[%emt 0:00:00]} e6 {[%emt 0:00:09]} 3. Nc3 {[%emt 0:00:40]} a6 {[%emt 0:00:22]} 4. cxd5 {[%emt 0:01:03]} exd5 {[%emt 0:00:02]} 5. Bf4 {[%emt 0:02:46]} Nf6 {[%emt 0:00:29]} 6. e3 {[%emt 0:00:26]} Bd6 {[%emt 0:00:22]} 7. Bg5 {[%emt 0:01:28]} c6 {[%emt 0:00:53]} 8. Bd3 {[%emt 0:00:59]} Be6 {[%emt 0:00:11]} 9. Nge2 {[%emt 0:03:43]} Nbd7 {[%emt 0:01:30]} 10. h3 {[%emt 0:06:28]} Qb8 {[%emt 0:02:26]} 11. O-O {[%emt 0:27:16]} h6 {[%emt 0:01:56]} 12. Bf4 {[%emt 0:01:57]} O-O {[%emt 0:03:45]} 13. Rc1 {[%emt 0:14:49]} Re8 {[%emt 0:00:40]} 14. Bxd6 {[%emt 0:09:41]} Qxd6 {[%emt 0:00:07]} 15. Ng3 {[%emt 0:00:42]} Qb4 {[%emt 0:06:30]} 16. Qc2 {[%emt 0:06:54]} Rac8 {[%emt 0:00:48]} 17. a3 {[%emt 0:02:40]} Qd6 {[%emt 0:02:13]} 18. Na4 {[%emt 0:02:07]} Qb8 {[%emt 0:06:43]} 19. Nc5 {[%emt 0:04:33]} Nxc5 {[%emt 0:00:09]} 20. Qxc5 {[%emt 0:02:09]} Rc7 {[%emt 0:01:25]} 21. Rc2 {[%emt 0:06:05]} Qc8 {[%emt 0:01:13]} 22. Rfc1 {[%emt 0:00:39]} h5 {[%emt 0:01:19]} 23. Qd6 {[%emt 0:01:07]} h4 {[%emt 0:07:07]} 24. Ne2 {[%emt 0:01:53]} Nh5 {[%emt 0:10:15]} 25. Qe5 {[%emt 0:01:10]} g6 {[%emt 0:00:12]} 26. Qg5 {[%emt 0:00:26]} Qd8 {[%emt 0:02:34]} 27. Qxd8 {[%emt 0:00:09]} Rxd8 {[%emt 0:00:01]} 28. b4 {[%emt 0:00:22]} Re7 {[%emt 0:00:11]} 29. a4 {[%emt 0:00:14]} Bd7 {[%emt 0:00:11]} 30. b5 {[%emt 0:00:43]} axb5 {[%emt 0:00:05]} 31. axb5 {[%emt 0:00:05]} Rde8 {[%emt 0:01:14]} 32. Rb2 {[%emt 0:01:27]} Nf6 {[%emt 0:07:26]} 33. bxc6 {[%emt 0:00:32]} bxc6 {[%emt 0:06:47]} 34. Rb7 {[%emt 0:00:25]} Ra8 {[%emt 0:00:01]} 35. Rxc6 {[%emt 0:01:15]} Bxc6 {[%emt 0:00:03]} 36. Rxe7 {[%emt 0:00:07]} Ra3 {[%emt 0:00:02]} 37. Rc7 {[%emt 0:00:48]} Rxd3 {[%emt 0:00:15]} 38. Rxc6 {[%emt 0:00:06]} Rd1+ {[%emt 0:00:13]} 39. Kh2 {[%emt 0:00:28]} Ne4 {[%emt 0:00:01]} 40. f3 {[%emt 0:00:00]} Nd2 {[%emt 0:00:00]} 41. Rc1 {[%emt 0:16:19]} Nf1+ {[%emt 0:07:57]} 42. Kg1 {[%emt 0:00:15]} Rxc1 {[%emt 0:00:03]} 43. Nxc1 {[%emt 0:00:08]} Nxe3 {[%emt 0:00:03]} 44. Ne2 {[%emt 0:00:56]} Nf5 {[%emt 0:02:26]} 45. Kf2 {[%emt 0:00:39]} Kg7 {[%emt 0:00:14]} 46. Nf4 {[%emt 0:01:35]} Ne7 {[%emt 0:03:14]} 47. Ne2 {[%emt 0:02:48]} Kf6 {[%emt 0:00:23]} 48. Ke3 {[%emt 0:03:58]} Nf5+ {[%emt 0:02:03]} 49. Kd3 {[%emt 0:01:42]} Ke6 {[%emt 0:01:27]} 50. Nf4+ {[%emt 0:01:13]} Kd6 {[%emt 0:00:28]} 51. Ne2 {[%emt 0:00:19]} Kc6 {[%emt 0:00:30]} 52. Nc3 {[%emt 0:03:24]} g5 {[%emt 0:03:36]} 53. Ne2 {[%emt 0:00:27]} Kd6 {[%emt 0:00:53]} 54. f4 {[%emt 0:00:42]} f6 {[%emt 0:00:15]} 55. fxg5 {[%emt 0:00:58]} fxg5 {[%emt 0:00:03]} 56. Ng1 {[%emt 0:01:46]} Ke6 {[%emt 0:07:24] Ke4 Ke5+} 1/2-1/2

[Event "69th RUS-ch Women Higher League 2019"]
[Site "Yaroslavl"]
[Date "2019.06.28"]
[Round "2.22"]
[White "Diakonova, Ekaterina"]
[Black "Faizutdinova, Diana"]
[Result "1-0"]
[ECO "B01"]
[WhiteElo "2196"]
[BlackElo "2061"]
[Annotator "NA"]
[PlyCount "73"]
[EventDate "2019.06.27"]
[EventType "swiss"]
[EventCountry "RUS"]
[SourceTitle "playchess.com"]
[Source "ChessBase"]
[SourceQuality "1"]
[TimeControl "40/5400+30:1800+30"]

1. e4 {[%emt 0:00:00]} d5 {[%emt 0:00:00]} 2. exd5 {[%emt 0:00:04]} Qxd5 {[%emt 0:00:00]} 3. Nf3 {[%emt 0:00:02]} Nf6 {[%emt 0:00:51]} 4. d4 {[%emt 0:00:08]} Bg4 {[%emt 0:00:59]} 5. Be2 {[%emt 0:00:06]} c6 {[%emt 0:02:58]} 6. O-O {[%emt 0:02:31]} e6 {[%emt 0:03:50]} 7. h3 {[%emt 0:02:43]} Bh5 {[%emt 0:05:57]} 8. c4 {[%emt 0:07:02]} Qd8 {[%emt 0:01:20]} 9. b3 {[%emt 0:05:10]} Be7 {[%emt 0:03:46]} 10. Bb2 {[%emt 0:00:36]} O-O {[%emt 0:02:40]} 11. Nbd2 {[%emt 0:07:38]} Nbd7 {[%emt 0:12:44]} 12. Qc2 {[%emt 0:01:31]} Bg6 {[%emt 0:12:50]} 13. Bd3 {[%emt 0:00:23]} c5 {[%emt 0:04:22]} 14. a3 {[%emt 0:15:19]} Rc8 {[%emt 0:09:35]} 15. Bxg6 {[%emt 0:06:48]} hxg6 {[%emt 0:00:06]} 16. Rfe1 {[%emt 0:03:41]} Bd6 {[%emt 0:06:58]} 17. Ne4 {[%emt 0:06:37]} Nxe4 {[%emt 0:01:56]} 18. Qxe4 {[%emt 0:01:22]} Nf6 {[%emt 0:03:37]} 19. Qe3 {[%emt 0:03:40]} a6 {[%emt 0:04:59]} 20. Rad1 {[%emt 0:02:23]} cxd4 {[%emt 0:02:37]} 21. Qxd4 {[%emt 0:03:16]} Bc5 {[%emt 0:03:54]} 22. Qh4 {[%emt 0:01:06]} Qb6 {[%emt 0:04:43]} 23. Ng5 {[%emt 0:05:24]} e5 {[%emt 0:04:34]} 24. Bxe5 {[%emt 0:08:18]} Nh5 {[%emt 0:00:05]} 25. Ne4 {[%emt 0:04:39]} Rfe8 {[%emt 0:03:08]} 26. Nxc5 {[%emt 0:02:01]} Qxc5 {[%emt 0:00:11]} 27. Bb2 {[%emt 0:01:58]} b5 {[%emt 0:00:51]} 28. Rxe8+ {[%emt 0:04:15]} Rxe8 {[%emt 0:00:06]} 29. Rc1 {[%emt 0:01:26]} Re2 {[%emt 0:03:20]} 30. cxb5 {[%emt 0:00:26]} Qxb5 {[%emt 0:00:12]} 31. Rc8+ {[%emt 0:01:08]} Kh7 {[%emt 0:01:03]} 32. Qd8 {[%emt 0:01:09]} g5 {[%emt 0:00:41]} 33. Bc3 {[%emt 0:02:40]} Qf5 {[%emt 0:00:51]} 34. f3 {[%emt 0:00:09]} Qb1+ {[%emt 0:00:26]} 35. Kh2 {[%emt 0:00:01]} Nf4 {[%emt 0:00:43]} 36. Qh8+ {[%emt 0:00:41]} Kg6 {[%emt 0:00:03]} 37. Qxg7+ {[%emt 0:00:06]} 1-0

[Event "69th RUS-ch Women Higher League 2019"]
[Site "Yaroslavl"]
[Date "2019.06.28"]
[Round "2.23"]
[White "Matveeva, Olga"]
[Black "Yakushina, Ekaterina"]
[Result "0-1"]
[ECO "D85"]
[WhiteElo "2189"]
[BlackElo "1783"]
[Annotator "NA"]
[PlyCount "75"]
[EventDate "2019.06.27"]
[EventType "swiss"]
[EventCountry "RUS"]
[SourceTitle "playchess.com"]
[Source "ChessBase"]
[SourceQuality "1"]
[TimeControl "40/5400+30:1800+30"]

1. d4 {[%emt 0:00:00]} Nf6 {[%emt 0:05:35]} 2. c4 {[%emt 0:00:00]} g6 {[%emt 0:00:15]} 3. Nc3 {[%emt 0:00:00]} d5 {[%emt 0:00:29]} 4. cxd5 {[%emt 0:00:00]} Nxd5 {[%emt 0:00:37]} 5. Bd2 {[%emt 0:00:00]} Nb6 {[%emt 0:00:47]} 6. Bf4 {[%emt 0:00:15]} Bg7 {[%emt 0:00:50]} 7. e3 {[%emt 0:00:15]} O-O {[%emt 0:02:18]} 8. Nf3 {[%emt 0:00:43]} c5 {[%emt 0:00:35]} 9. dxc5 {[%emt 0:01:55]} N6d7 {[%emt 0:00:12]} 10. Nd5 {[%emt 0:01:33]} Nxc5 {[%emt 0:00:22]} 11. Rc1 {[%emt 0:00:39]} Nba6 {[%emt 0:00:28]} 12. b4 {[%emt 0:01:00]} Ne4 {[%emt 0:00:13]} 13. Bxa6 {[%emt 0:01:01]} bxa6 {[%emt 0:00:06]} 14. Rc7 {[%emt 0:02:33]} Bd7 {[%emt 0:00:12]} 15. Ng5 {[%emt 0:02:15]} e6 {[%emt 0:00:11]} 16. Nxe4 {[%emt 0:02:34]} exd5 {[%emt 0:00:05]} 17. Qxd5 {[%emt 0:00:20]} Bb5 {[%emt 0:00:15]} 18. Qxd8 {[%emt 0:08:20]} Rfxd8 {[%emt 0:00:10]} 19. Nd6 {[%emt 0:00:41]} Bf8 {[%emt 0:00:47]} 20. Nxb5 {[%emt 0:00:29]} axb5 {[%emt 0:00:06]} 21. Ke2 {[%emt 0:01:36]} Bxb4 {[%emt 0:02:17]} 22. Rd1 {[%emt 0:00:43]} Rxd1 {[%emt 0:05:03]} 23. Kxd1 {[%emt 0:00:05]} Rd8+ {[%emt 0:00:24]} 24. Kc1 {[%emt 0:00:14]} a5 {[%emt 0:02:24]} 25. Rb7 {[%emt 0:14:03]} Rd5 {[%emt 0:29:11]} 26. Bh6 {[%emt 0:04:31]} f6 {[%emt 0:01:34]} 27. e4 {[%emt 0:27:14]} Rh5 {[%emt 0:05:37]} 28. Bf4 {[%emt 0:10:00]} Rh4 {[%emt 0:01:42]} 29. Be3 {[%emt 0:15:06]} Rxh2 {[%emt 0:08:41]} 30. Rxb5 {[%emt 0:03:19]} Rxg2 {[%emt 0:01:00]} 31. Bd4 {[%emt 0:02:49]} h5 {[%emt 0:06:14]} 32. Bxf6 {[%emt 0:00:53]} Rxf2 {[%emt 0:00:08]} 33. e5 {[%emt 0:00:14]} Kf7 {[%emt 0:01:37]} 34. Rb7+ {[%emt 0:00:58]} Ke6 {[%emt 0:00:50]} 35. Rb6+ {[%emt 0:00:18]} Kf5 {[%emt 0:01:32]} 36. a4 {[%emt 0:00:32]} Ra2 {[%emt 0:05:57]} 37. Bg7 {[%emt 0:00:41]} Rxa4 {[%emt 0:01:04]} 38. e6 {[%emt 0:01:11] Ke5} 0-1

[Event "69th RUS-ch Women Higher League 2019"]
[Site "Yaroslavl"]
[Date "2019.06.28"]
[Round "2.24"]
[White "Tokmakova, Ulyana"]
[Black "Markelova, Lubov"]
[Result "0-1"]
[ECO "A11"]
[WhiteElo "1878"]
[BlackElo "2186"]
[Annotator "NA"]
[PlyCount "70"]
[EventDate "2019.06.27"]
[EventType "swiss"]
[EventCountry "RUS"]
[SourceTitle "playchess.com"]
[Source "ChessBase"]
[SourceQuality "1"]
[TimeControl "40/5400+30:1800+30"]

1. c4 {[%emt 0:00:00]} c6 {[%emt 0:00:00]} 2. Qa4 {[%emt 0:00:00]} Nf6 {[%emt 0:04:22]} 3. Nc3 {[%emt 0:00:01]} g6 {[%emt 0:02:42]} 4. Nf3 {[%emt 0:00:29]} Bg7 {[%emt 0:00:15]} 5. g3 {[%emt 0:01:01]} O-O {[%emt 0:01:05]} 6. Bg2 {[%emt 0:00:16]} d6 {[%emt 0:08:29]} 7. d4 {[%emt 0:03:26]} Nbd7 {[%emt 0:00:41]} 8. Qc2 {[%emt 0:03:21]} e5 {[%emt 0:03:27]} 9. O-O {[%emt 0:02:31]} Re8 {[%emt 0:02:40]} 10. dxe5 {[%emt 0:05:26]} dxe5 {[%emt 0:00:39]} 11. Bg5 {[%emt 0:03:23]} h6 {[%emt 0:01:54]} 12. Be3 {[%emt 0:01:25]} Qe7 {[%emt 0:08:37]} 13. Rad1 {[%emt 0:02:55]} Nf8 {[%emt 0:05:20]} 14. h3 {[%emt 0:04:17]} Bf5 {[%emt 0:06:14]} 15. Qc1 {[%emt 0:00:35]} g5 {[%emt 0:05:09]} 16. g4 {[%emt 0:02:31]} Bh7 {[%emt 0:03:45]} 17. Nd2 {[%emt 0:05:53]} Ne6 {[%emt 0:01:00]} 18. Nde4 {[%emt 0:00:52]} Nf4 {[%emt 0:07:46]} 19. Bc5 {[%emt 0:08:32]} Nxe4 {[%emt 0:09:18]} 20. Bxe7 {[%emt 0:04:29]} Nxc3 {[%emt 0:00:03]} 21. Kh2 {[%emt 0:03:08]} Ncxe2 {[%emt 0:04:29]} 22. Qe3 {[%emt 0:00:46]} Nxg2 {[%emt 0:04:13]} 23. Kxg2 {[%emt 0:04:41]} Nf4+ {[%emt 0:00:05]} 24. Kh2 {[%emt 0:00:09]} Rxe7 {[%emt 0:00:05]} 25. Qc5 {[%emt 0:02:34]} Rae8 {[%emt 0:03:57]} 26. Qxa7 {[%emt 0:06:51]} Bd3 {[%emt 0:01:48]} 27. Rfe1 {[%emt 0:01:24]} Bxc4 {[%emt 0:01:04]} 28. b3 {[%emt 0:01:13]} Bd5 {[%emt 0:00:43]} 29. Qc5 {[%emt 0:01:33]} e4 {[%emt 0:01:44]} 30. Qe3 {[%emt 0:02:21]} Be5 {[%emt 0:00:41]} 31. Kg1 {[%emt 0:01:21]} Ng6 {[%emt 0:02:45]} 32. Re2 {[%emt 0:02:21]} Bf4 {[%emt 0:01:12]} 33. Qc3 {[%emt 0:00:22]} e3 {[%emt 0:02:20]} 34. fxe3 {[%emt 0:02:16]} Bxe3+ {[%emt 0:00:22]} 35. Kf1 {[%emt 0:00:11]} Bf3 {[%emt 0:01:31]} 0-1